Cogmind - Beta 13 @@@ ROGUE MODE // 2024.04.15 @ 20:09:46 Player: Tuks Result: Destroyed by S-27 Virus with Autogun Performance ------------- Evolutions (3) 1500 Regions Visited (7) 1400 Robots Destroyed (23) 115 Value Destroyed (1027) 1027 Prototype IDs (2) 40 Alien Tech Used (0) 0 Bonus (500) 500 TOTAL SCORE: 4582 Bonus ------- Entered Garrisons 200 Aligned with FarCom 300 Cogmind --------- Core Integrity 0/700 Matter 270/300 Energy 300/300 System Corruption 3% Temperature Cool (12) Movement Core (750) Ox14 Location -7/Garrison Parts ------- > --- POWER (2) -------- (None) > --- PROPULSION (4) --- (None) > --- UTILITY (5) ------ High-capacity Storage Unit Large Battery > --- WEAPON (2) ------- (None) > --- INVENTORY (20) --- Nuclear Core Matter Filter Hacking Suite Pulse Rifle Cooled Pulse Rifle Cooled Pulse Rifle Cooled Pulse Rifle Heavy Particle Cannon Peak State ------------ > --- POWER ------------ Nuclear Core Nuclear Core > --- PROPULSION ------- Armored Treads Advanced Treads Aluminum Leg > --- UTILITY ---------- Small Storage Unit Large Battery Advanced Terrain Scan Processor Modified TNC Hardlight Generator > --- WEAPON ----------- Cooled Pulse Rifle Cooled Pulse Rifle > --- INVENTORY -------- Ion Engine High-capacity Storage Unit Matter Filter Pulse Rifle Cooled Pulse Rifle Cooled Pulse Rifle Heavy Particle Cannon [Rating: 40] Favorites ----------- Power Ion Engine Engine Ion Engine Power Core Nuclear Core Propulsion Light Treads Treads Light Treads Leg Aluminum Leg Utility Small Storage Unit Device Hardlight Generator Storage Small Storage Unit Processor Modified TNC Protection Power Shielding Weapon Grenade Launcher Energy Gun EM Pulse Gun Ballistic Gun Light Assault Rifle Launcher Grenade Launcher Build | -11 -10 -10 -10 -9 -8 -7 -7 ------- Run | Yrd Mat Min Exi Min Mat Fac Gar Slots Evolved 6 | . . . . . 4 2 . Power 1 | . . . . . . 1 . Propulsion 2 | . . . . . 2 . . Utility 3 | . . . . . 2 1 . Weapon . | . . . . . . . . Parts Attached 39 | 4 3 . 1 6 16 7 2 Power 5 | 1 . . . 1 1 1 1 Engine 3 | 1 . . . 1 . . 1 Core 2 | . . . . . 1 1 . Reactor . | . . . . . . . . Propulsion 12 | 2 . . . 2 5 3 . Treads 8 | 2 . . . . 3 3 . Leg 4 | . . . . 2 2 . . Wheel . | . . . . . . . . Hover . | . . . . . . . . Flight . | . . . . . . . . Utility 10 | 1 1 . 1 . 5 1 1 Device 3 | . . . . . 3 . . Storage 4 | 1 . . . . 2 . 1 Processor 2 | . . . 1 . . 1 . Hackware . | . . . . . . . . Protection 1 | . 1 . . . . . . Artifact . | . . . . . . . . Weapon 12 | . 2 . . 3 5 2 . Energy Gun 8 | . 1 . . 1 4 2 . Energy Cannon . | . . . . . . . . Ballistic Gun 1 | . . . . 1 . . . Ballistic Cannon . | . . . . . . . . Launcher 3 | . 1 . . 1 1 . . Special Weapon . | . . . . . . . . Impact Weapon . | . . . . . . . . Slashing Weapon . | . . . . . . . . Piercing Weapon . | . . . . . . . . Special Melee Weapon . | . . . . . . . . Unidentified Prototypes 2 | . . . 1 . 1 . . Parts Lost 18 | . . . . 1 3 3 11 Power 2 | . . . . . . . 2 Propulsion 7 | . . . . . 1 2 4 Utility 4 | . . . . . 1 . 3 Weapon 5 | . . . . 1 1 1 2 Highest Loss Streak 11 | . . . . 1 2 2 11 To Critical Strikes . | . . . . . . . . Average Slot Usage (%) 97 | . 77 100 100 100 97 93 95 Engine 10 | . 14 14 14 14 8 . 3 Core 2 | . . . . . 1 14 10 Treads 24 | . 28 28 28 26 10 19 27 Leg 4 | . . . . 1 24 5 . Device 2 | . . . . . 6 7 6 Storage 14 | . 14 14 14 14 19 15 15 Processor 6 | . . . 2 14 9 14 14 Protection 6 | . 4 14 11 . . . . Energy Gun 14 | . 8 14 14 12 17 14 14 Launcher 8 | . 7 14 14 11 . . . Naked Turns . | . . . . . . . . Heaviest Build 73 | 10 16 16 16 14 28 35 73 Greatest Support 82 | 40 40 40 40 40 64 82 82 Greatest Overweight (x) 18 | . . . . . 1 . 18 Average Overweight (x) . | . . . . . . . . Largest Inventory Capacity 20 | 8 8 8 8 8 8 8 20 Average Capacity 8 | 6 8 8 8 8 8 8 20 Most Carried 8 | 5 5 3 7 8 8 8 8 Average Carried 6 | 3 3 3 5 7 7 6 7 Final Capacity 20 | 8 8 8 8 8 8 8 20 Final Carried 8 | 4 3 3 7 7 6 8 8 Class Distribution -------------------- 84% | Mutant 15% | Scavenger-Mutant Dominant Class ---------------- Mutant | -10/Materials Mutant | -10/Mines Mutant | -10/Exiles Mutant | -9/Mines Scavenger-Mutant | -8/Materials Mutant | -7/Factory Scavenger-Mutant | -7/Garrison Resources | -11 -10 -10 -10 -9 -8 -7 -7 ----------- Run | Yrd Mat Min Exi Min Mat Fac Gar Matter Collected 674 | 240 . . 30 181 109 66 48 Remotely . | . . . . . . . . Salvage Created 976 | . 60 . . 190 376 163 187 Parts 39 | . 2 . . 12 11 7 7 Haulers Intercepted . | . . . . . . . . Recyclers Shooed . | . . . . . . . . Parts Field Recycled . | . . . . . . . . Retrieved Matter . | . . . . . . . . Parts Self-Destructed . | . . . . . . . . Prevented . | . . . . . . . . Kills | -11 -10 -10 -10 -9 -8 -7 -7 ------- Run | Yrd Mat Min Exi Min Mat Fac Gar Combat Hostiles Destroyed 24 | . 1 . . 7 9 3 4 Guns 17 | . 1 . . 4 6 2 4 AOE 6 | . . . . 3 3 . . Classes Destroyed 8 | . 1 . . 3 1 2 1 Tunneler 1 | . . . . 1 . . . Watcher 1 | . . . . . 1 . . Swarmer 1 | . . . . . . . 1 Grunt 13 | . 1 . . 3 9 . . Brawler 1 | . . . . 1 . . . Sentry 5 | . . . . . . 2 3 Programmer 1 | . . . . . . 1 . Assembled 3 | . . . . 3 . . . Best Kill Streak 3 | . 1 . . 3 3 2 3 Combat Bots Only 3 | . 1 . . 3 3 2 3 Max Kills in Single Turn 2 | . 1 . . 2 2 1 1 Gunslinging . | . . . . . . . . Exploded 2 | . . . . 2 2 . . Melee . | . . . . . . . . Uniques/NPCs Destroyed . | . . . . . . . . Combat | -11 -10 -10 -10 -9 -8 -7 -7 -------- Run | Yrd Mat Min Exi Min Mat Fac Gar Hostile Shots Fired 408 | . 7 . . 23 58 73 247 Missed 132 | . 2 . . 2 19 29 80 Damage Taken 3155 | . 64 . . 442 838 190 1621 Core 827 | . . . . 58 60 43 666 Absorbed by Shields 412 | . . . . . 48 160 204 Core Remaining (%) 88 | 100 . . . 76 89 . . Volleys Fired 74 | . 4 . 2 21 28 10 9 Largest 2 | . 1 . 1 2 2 2 2 Hottest 160 | . 40 . 40 60 75 160 160 Shots Fired 123 | . 4 . 2 27 51 21 18 Gun 107 | . 4 . 2 16 46 21 18 Cannon . | . . . . . . . . Launcher 16 | . . . . 11 5 . . Special . | . . . . . . . . Kinetic 9 | . . . . 9 . . . Thermal 73 | . . . . 1 33 21 18 Explosive 16 | . . . . 11 5 . . Electromagnetic 25 | . 4 . 2 6 13 . . Robot Hit Streak 12 | . 2 . . 6 12 9 12 Robot Miss Streak 5 | . 1 . . 1 3 4 5 Penetration Max . | . . . . . . . . Secondary Targets . | . . . . . . . . Shots Hit Robots 86 | . 3 . . 12 39 17 15 Core Hits 70 | . 1 . . 17 24 9 19 Critical Kills . | . . . . . . . . Critical Parts Destroyed . | . . . . . . . . Critical Strikes . | . . . . . . . . Melee Attacks . | . . . . . . . . Impact . | . . . . . . . . Slashing . | . . . . . . . . Piercing . | . . . . . . . . Sneak Attacks . | . . . . . . . . Combat Hostiles . | . . . . . . . . Follow-up Attacks . | . . . . . . . . Damage Inflicted 2513 | . 136 . . 320 1303 373 381 Guns 1695 | . 42 . . 113 786 373 381 Cannons . | . . . . . . . . Explosions 816 | . 94 . . 207 515 . . Melee . | . . . . . . . . Ramming 2 | . . . . . 2 . . Kinetic 56 | . . . . 56 . . . Thermal 1710 | . 94 . . 11 851 373 381 Explosive 379 | . . . . 207 172 . . Electromagnetic 366 | . 42 . . 46 278 . . Impact . | . . . . . . . . Slashing . | . . . . . . . . Piercing . | . . . . . . . . Highest Corruption 3 | . . . . . . 3 3 Average Corruption 2 | . . . . . . 2 3 Corruption Purged . | . . . . . . . . Corruption Blocked . | . . . . . . . . Effects 8 | . . . . . . 4 4 Message Errors 2 | . . . . . . 1 1 Matter Fused 2 | . . . . . . 1 1 Heat Flow Errors 1 | . . . . . . . 1 Energy Discharges 1 | . . . . . . . 1 Data Loss (major) 1 | . . . . . . 1 . Misfires 1 | . . . . . . 1 . Overload Shots . | . . . . . . . . Overflow Damage 22 | . . . . . 22 . . Projectiles . | . . . . . . . . Explosions 22 | . . . . . 22 . . Melee . | . . . . . . . . Knockbacks . | . . . . . . . . Impact . | . . . . . . . . Kinetic . | . . . . . . . . Secondary . | . . . . . . . . Self-Inflicted Damage 198 | . . . . 80 118 . . Shots 8 | . . . . 4 4 . . Rammed . | . . . . . . . . Targets Rammed 1 | . . . . . 1 . . Kicked 1 | . . . . . 1 . . Crushed . | . . . . . . . . Highest Temperature 560 | . 36 . . 76 156 293 560 Average Temperature 130 | . 21 . . 35 64 123 203 Received Heat Transfer 844 | . 75 . . 48 348 44 329 Effects 12 | . . . . . . . 12 Shutdowns 3 | . . . . . . . 3 Energy Bleed 4 | . . . . . . . 4 Interference 3 | . . . . . . . 3 Matter Decay 2 | . . . . . . . 2 Siege Activations . | . . . . . . . . Robots Corrupted . | . . . . . . . . Combat Hostiles . | . . . . . . . . Parts Fried 1 | . . . . . 1 . . Impact Corruptions . | . . . . . . . . Robots Melted 1 | . . . . . . 1 . Combat Hostiles 1 | . . . . . . 1 . Parts Melted 7 | . . . . . . 5 2 Heat Transferred 2761 | . 100 . . 25 1212 785 639 Parts Sabotaged . | . . . . . . . . Parts Stolen . | . . . . . . . . Parts Stripped . | . . . . . . . . Power Chain Reactions 1 | . 1 . . . . . . Alert | -11 -10 -10 -10 -9 -8 -7 -7 ------- Run | Yrd Mat Min Exi Min Mat Fac Gar Peak Influence 267 | . 34 13 . 107 267 156 123 Initial 121 | . . 13 . . 41 121 38 Average 82 | . 8 13 . 81 110 98 81 Maximum Alert Level 1 | . . . . . 1 . . Low Security (%) 94 | 100 100 100 . 100 78 100 100 Level 1 5 | . . . . . 21 . . Level 2 . | . . . . . . . . Level 3 . | . . . . . . . . Level 4 . | . . . . . . . . Level 5 . | . . . . . . . . High Security . | . . . . . . . . Max Security . | . . . . . . . . Squads Dispatched 4 | . . . . . 3 1 . Investigation . | . . . . . . . . Extermination 1 | . . . . . . 1 . Reinforcement 3 | . . . . . 3 . . Assault . | . . . . . . . . Garrison . | . . . . . . . . Intercept . | . . . . . . . . Searches Triggered . | . . . . . . . . Construction Impeded . | . . . . . . . . Haulers Reinforced . | . . . . . . . . Active Scanning Responses . | . . . . . . . . Cargo Convoy Interrupts . | . . . . . . . . Stealth | -11 -10 -10 -10 -9 -8 -7 -7 --------- Run | Yrd Mat Min Exi Min Mat Fac Gar Distress Signals 1 | . . . . . 1 . . Communications Jammed . | . . . . . . . . Distress Signals . | . . . . . . . . Times Spotted 54 | . 2 . . 7 21 4 20 Peak Tracking Total 16 | . 2 . . 4 5 2 16 Tactical Retreats 4 | . . . . 1 3 . . Traps | -11 -10 -10 -10 -9 -8 -7 -7 ------- Run | Yrd Mat Min Exi Min Mat Fac Gar Traps Triggered 1 | . . . . . . 1 . Indirectly . | . . . . . . . . Trap Hack Attempts . | . . . . . . . . Triggered . | . . . . . . . . Disarmed . | . . . . . . . . Reprogrammed . | . . . . . . . . Reused . | . . . . . . . . Traps Extracted . | . . . . . . . . Installed . | . . . . . . . . Triggered . | . . . . . . . . Machines | -11 -10 -10 -10 -9 -8 -7 -7 ---------- Run | Yrd Mat Min Exi Min Mat Fac Gar Machines Disabled 3 | . . . . . 3 . . Max in Single Turn 2 | . . . . . 2 . . Machines Repaired . | . . . . . . . . Machines Dismantled . | . . . . . . . . Machines Sabotaged . | . . . . . . . . Overloaded Fab Kills . | . . . . . . . . Hacking | -11 -10 -10 -10 -9 -8 -7 -7 --------- Run | Yrd Mat Min Exi Min Mat Fac Gar Machines Accessed 7 | . . . 4 . 1 2 . Terminals 1 | . . . . . 1 . . Fabricators 1 | . . . . . . 1 . Repair Stations . | . . . . . . . . Recycling Units . | . . . . . . . . Scanalyzers . | . . . . . . . . Garrison Access 1 | . . . . . . 1 . Total Hacks 53 | . . . 49 . 2 2 . Successful 52 | . . . 49 . 1 2 . Failed 1 | . . . . . 1 . . Catastrophic 1 | . . . . . 1 . . Database Lockouts . | . . . . . . . . Manual 8 | . . . 8 . . . . Terminals 2 | . . . . . 2 . . Fabricators 1 | . . . . . . 1 . Repair Stations . | . . . . . . . . Recycling Units . | . . . . . . . . Scanalyzers . | . . . . . . . . Garrison Access 1 | . . . . . . 1 . Terminal Hacks 50 | . . . 49 . 1 . . Record 50 | . . . 49 . 1 . . Fabricator Hacks 1 | . . . . . . 1 . Network Status 1 | . . . . . . 1 . Repair Station Hacks . | . . . . . . . . Recycling Unit Hacks . | . . . . . . . . Scanalyzer . | . . . . . . . . Garrison Access Hacks 1 | . . . . . . 1 . Unlock Access 1 | . . . . . . 1 . Unauthorized Hacks . | . . . . . . . . Terminals . | . . . . . . . . Fabricators . | . . . . . . . . Repair Stations . | . . . . . . . . Recycling Units . | . . . . . . . . Scanalyzers . | . . . . . . . . Garrison Access . | . . . . . . . . Data Cores Recovered . | . . . . . . . . Used . | . . . . . . . . Hacking Detections 1 | . . . . . 1 . . Full Trace Events . | . . . . . . . . Feedback Events . | . . . . . . . . Feedback Blocked . | . . . . . . . . Robot Schematics Acquired . | . . . . . . . . Robots Built . | . . . . . . . . Authchips . | . . . . . . . . Time . | . . . . . . . . Total Robot Build Rating . | . . . . . . . . Part Schematics Acquired . | . . . . . . . . Parts Built . | . . . . . . . . Authchips . | . . . . . . . . Time . | . . . . . . . . Total Part Build Rating . | . . . . . . . . Parts Repaired . | . . . . . . . . Time . | . . . . . . . . Parts Recycled . | . . . . . . . . Recycled Matter . | . . . . . . . . Retrieved Matter . | . . . . . . . . Retrieved Components . | . . . . . . . . Parts Scanalyzed . | . . . . . . . . Part Schematics Acquired . | . . . . . . . . Parts Damaged . | . . . . . . . . Bothacking | -11 -10 -10 -10 -9 -8 -7 -7 ------------ Run | Yrd Mat Min Exi Min Mat Fac Gar Used RIF Installer . | . . . . . . . . Robots Hacked . | . . . . . . . . Non-combat . | . . . . . . . . Combat . | . . . . . . . . Robot Hacks Applied . | . . . . . . . . Relay Couplers Released . | . . . . . . . . Fabnet Peak Effective % . | . . . . . . . . Robots Rewired . | . . . . . . . . Allies Hacked . | . . . . . . . . Hacks Repelled . | . . . . . . . . Allies | -11 -10 -10 -10 -9 -8 -7 -7 -------- Run | Yrd Mat Min Exi Min Mat Fac Gar Total Allies . | . . . . . . . . Largest Group . | . . . . . . . . Highest-Rated Group . | . . . . . . . . Highest-Rated Ally . | . . . . . . . . Total Orders . | . . . . . . . . Ally Attacks . | . . . . . . . . Total Damage . | . . . . . . . . Kills . | . . . . . . . . Allies Corrupted . | . . . . . . . . Allies Melted . | . . . . . . . . Intel | -11 -10 -10 -10 -9 -8 -7 -7 ------- Run | Yrd Mat Min Exi Min Mat Fac Gar Robot Analysis Total . | . . . . . . . . Derelict Logs Recovered 1 | . . . . 1 . . . Drone Launches . | . . . . . . . . Drone Recoveries . | . . . . . . . . Exploration | -11 -10 -10 -10 -9 -8 -7 -7 ------------- Run | Yrd Mat Min Exi Min Mat Fac Gar Turns Passed 3932 | 59 199 53 2018 267 542 568 226 Spaces Moved 2311 | 34 117 32 1249 112 320 332 115 Core 7 | 6 . . . . . . 1 Treads 2076 | 28 117 32 1249 104 100 332 114 Legs 228 | . . . . 8 220 . . Wheels . | . . . . . . . . Hover . | . . . . . . . . Flight . | . . . . . . . . Fastest Speed 50 | 50 160 160 160 120 120 155 156 Average Speed 155 | 140 160 160 160 157 130 156 166 Slowest Speed 950 | 160 160 160 160 160 225 158 950 Overloaded Moves . | . . . . . . . . Propulsion Burnouts . | . . . . . . . . Robots Hopped . | . . . . . . . . Cave-ins Triggered . | . . . . . . . . Exploration Rate (%) 27 | 4 36 12 94 19 30 7 21 Regions Visited 7 Branch Regions 3 Pre-discovered Areas 1 | . . . 1 . . . . Known Exits Taken 2 | . . . . 1 . 1 . Unknown Exits Taken 5 | 1 1 1 1 . 1 . . Scrap Searched . | . . . . . . . . Spaces Dug . | . . . . . . . . Terrain Destroyed 106 | . 4 . . 31 71 . . Melee . | . . . . . . . . Projectile . | . . . . . . . . AOE 106 | . 4 . . 31 71 . . Terrain Rammed . | . . . . . . . . Walls Destroyed . | . . . . . . . . Machines Disabled . | . . . . . . . . Actions | -11 -10 -10 -10 -9 -8 -7 -7 --------- Run | Yrd Mat Min Exi Min Mat Fac Gar Total 2524 | 45 125 34 1266 178 394 354 128 Wait 52 | . . 3 9 31 9 . . Move 2304 | 33 116 31 1248 111 319 331 115 Hop . | . . . . . . . . Pick Up 36 | 8 2 . 4 5 11 5 1 Fast Attach 8 | . . . . . 4 4 . Attach 17 | 4 3 . . 2 6 2 . Detach . | . . . . . . . . Swap 14 | . . . 1 4 6 1 2 Drop 16 | . . . . 4 10 1 1 Fire 74 | . 4 . 2 21 28 10 9 Melee . | . . . . . . . . Ram . | . . . . . . . . Kick 1 | . . . . . 1 . . Crush . | . . . . . . . . Escape Stasis . | . . . . . . . . Rewire 2 | . . . 2 . . . . Trap . | . . . . . . . . Miscellaneous . | . . . . . . . . Route ------- -11/Scrapyard -10/Materials -10/Mines -10/Exiles (discovered 2 exits: [*Min x2]) -9/Mines -8/Materials (discovered 2 exits: *Fac / [*Sto]) -7/Factory -7/Garrison History --------- Turn | Location | Event 26 | -11/Scrapyard | Discovered new exit (range 15) 60 | -11/Scrapyard | Entered Materials 65 | -10/Materials | Discovered new exit (range 6) 196 | -10/Materials | Met 8R-AWN 259 | -10/Materials | Entered Mines 261 | -10/Mines | Followed 8R-AWN into the Mines 306 | -10/Mines | Discovered new exit (range 5) 312 | -10/Mines | Entered Exiles 315 | -10/Exiles | Build established: Mutant 338 | -10/Exiles | Discovered new exit (range 15) 357 | -10/Exiles | Welcomed by 8R-AWN 392 | -10/Exiles | Met EX-HEX 526 | -10/Exiles | Met EX-DEC 565 | -10/Exiles | Learned location of Zion (-7) 669 | -10/Exiles | Discovered new exit (range 10) 794 | -10/Exiles | Met EX-BIN 1166 | -10/Exiles | Visited The Gauntlet 1753 | -10/Exiles | Learned about 8R-AWN's background 1986 | -10/Exiles | Aligned with FarCom system 1988 | -10/Exiles | Given EX-Vault access code 2025 | -10/Exiles | Opened EX-Vault 2034 | -10/Exiles | Found Prototype Processor 2035 | -10/Exiles | Identified Modified TNC 2069 | -10/Exiles | Warned to stay clear of 0b10 Research branches 2330 | -10/Exiles | Left Exiles lab with Modified TNC 2330 | -10/Exiles | Entered Mines 2384 | -9/Mines | Excavation squad dispatched 2384 | -9/Mines | A large section of the Mines collapsed 2528 | -9/Mines | Identified exit to Materials 2597 | -9/Mines | Entered Materials 2597 | -8/Materials | Evolved 4 slots: Propulsion x2, Utility x2 2601 | -8/Materials | Discovered new exit (range 9) 3127 | -8/Materials | Discovered new exit (range 7) 3139 | -8/Materials | Entered Factory 3139 | -7/Factory | Evolved 2 slots: Power x1, Utility x1 3242 | -7/Factory | Identified exit to Garrison 3707 | -7/Factory | Entered Garrison 3787 | -7/Garrison | Triggered checkpoint 3905 | -7/Garrison | Triggered checkpoint 3905 | -7/Garrison | Triggered checkpoint 3906 | -7/Garrison | Triggered checkpoint 3909 | -7/Garrison | Build established: Scavenger-Mutant 3923 | -7/Garrison | Triggered checkpoint 3929 | -7/Garrison | Core integrity fell below 50% 3932 | -7/Garrison | Core integrity fell below 20% 3933 | -7/Garrison | Destroyed by S-27 Virus with Autogun Last Messages --------------- Beams of light sweep through the air. An alarm sounds. Adv. Treads destroyed. Beams of light sweep through the air. An alarm sounds. S-27 Virus destroyed. Gatling Laser destroyed. Lgt. Treads destroyed. Gatling Laser destroyed. Imp. Deuterium Engine destroyed. Lgt. Treads destroyed. Beams of light sweep through the air. An alarm sounds. Lgt. Treads destroyed. Nuclear Core destroyed. Hardlight Generator destroyed. Adv. Terrain Scan Processor destroyed. Modified TNC destroyed. System corrupted: Matter fused (-8). G-47 Trooper suffers critical hit (Destroy). Map ----- +----------------------------------------------------+ | ????????????????# #?????????????????????????????? | | ????????????????# #?????????????????????????????? | | ?################ #?????????????????????????????? | | ?# ########??????????????????????? | | ?# ############## #??????????????????????? | | ?# #????????????# ^ #??????????????????????? | | ?#^#??#?????????######## #??????????????????????? | | ?# ## #????????????????# #??????????????????????? | | ## +[??????????????????# #??????????????????????? | | %[!#???????????????????# #??????????????????????? | | [ #???????????????????# #??????????????????????? | | % #???????????????????# #????##??? #???????????? | | ## #???????????????????#^^#??? #? #???????????? | | ?# ###????????????????##^^##"" ## #???????????? | | ?# #"#????????????????# #???????????? | | ?# "#????????????????# #???????????? | | ?# "#????????????????# #???????????? | | ?# "#????????????????# ## ## #???????????? | | ?# #"#??????????????### ## ## ###?????????? | | ?#####??????????????#%= #?????????? | | ????????????????????#s s #?????????? | | ????????????????????# g #?????????? | | ????????????????????# sssg #?????????? | | ????????????????????### ss## ## ###?????????? | | ?????????????????###### ## ## #???????????? | | ????????????# g @ g ????????? | | ????????????# g g ????????? | | ????????????# ######## #???????????? | | ??????????????????????## ## ######???????????? | | ???????????????????????# #? YY#????????????????? | | ???????????????????????# #??####????????????????? | | ???????????????????????# #??????????????????????? | | ??????????????g????????# #??????????????????????? | | ???????????????????????# #??????????????????????? | | ???????????????????????# ???????????????????????? | | ??????????????????????? ???????????????????????? | | ??????????????????????? ???????????????????????? | | ???????????????????????###???????????????????????? | | ?????????????????????????????????????????????????? | | ?????????????????????????????????????????????????? | | ?????????????????????????????????????????????????? | | ?????????????????????????????????????????????????? | | ?????????????????????????????????????????????????? | | ?????????????????????????????????????????????????? | | ?????????????????????????????????????????????????? | | ?????????????????????????????????????????????????? | | ?????????????????????????????????????????????????? | | ?????????????????????????????????????????????????? | | ?????????????????????????????????????????????????? | | ?????????????????????????????????????????????????? | +----------------------------------------------------+ Best States ------------- Heat Dissipation 34 Energy Generation 25 Energy Capacity 630 Matter Stores 437 Matter Capacity 500 Sight Range 16 Terrain Scan Density 210 Power Shielding 33 Evasion (%) 55 Recoil Reduction 4 Particle Charging 15 Item Schematics ----------------- None Robot Schematics ------------------ None Fabricated ------------ Nothing Alien Tech Used ----------------- None Achievements -------------- It's Just You Made in Tau Ceti IV Tourist Challenges ------------ None Game ------ Seed NeutrinoNeutrinoPropulsion Manual? 0 Play Time 00:49:14 Cumulative 3.5 hours Start 2024.04.15 @ 19:11:15 End 2024.04.15 @ 20:09:46 Sessions 1 Manual Loads 0 Difficulty Rogue Special Mode None Game No. 7 Rogue 7 Adventurer 0 Explorer 0 Win Type - Total 0 Types 0/0/0/0/0/0/0/0/0 Lore% 11 Gallery% 7 Achievement% 7 Wizard Run 0 Options --------- Layout 1 ASCII 0 Keyboard 0 Movement Mouse Keybinds 0 Fullscreen 2 Font 24/Crisp Map View 50x35 Zoom Use 0% Tactical HUD 0 Map Filters NONE Filters NONE Steam 1 RUN: 83cc13e8-9c2c-4460-a038-d85708857a78